[Event "Titled Tuesday Blitz March 22 Early 2022"]
[White "Gatterer, Florian"]
[Black "Saldano Dayer, Horacio"]
[WhiteFideId "811688"]
[BlackFideId "103411"]
[WhiteElo "2218"]
[BlackElo "2419"]
[Result "0-1"]
[Round "08"]
[TimeControl "180+1"]
[Date "2022.03.22"]
[WhiteClock "0:00:02"]
[BlackClock "0:00:33"]

1. c4 {[%clk 0:03:00]}  g6 {[%clk 0:02:58]} 2. e4 {[%clk 0:02:52]}  Bg7 {[%clk 0:02:58]} 3. d4 {[%clk 0:02:52]}  d6 {[%clk 0:02:58]} 4. Nc3 {[%clk 0:02:51]}  Nf6 {[%clk 0:02:58]} 5. Be3 {[%clk 0:02:50]}  Ng4 {[%clk 0:02:48]} 6. Bc1 {[%clk 0:02:49]}  e5 {[%clk 0:02:32]} 7. dxe5 {[%clk 0:02:45]}  Nxe5 {[%clk 0:02:30]} 8. Nf3 {[%clk 0:02:42]}  Nbc6 {[%clk 0:02:26]} 9. Nxe5 {[%clk 0:02:40]}  dxe5 {[%clk 0:02:15]} 10. Qxd8+ {[%clk 0:02:32]}  Nxd8 {[%clk 0:02:16]} 11. Nd5 {[%clk 0:02:25]}  Ne6 {[%clk 0:02:15]} 12. Be3 {[%clk 0:02:06]}  c6 {[%clk 0:02:14]} 13. Nc3 {[%clk 0:02:02]}  Nd4 {[%clk 0:02:03]} 14. O-O-O {[%clk 0:02:01]}  Be6 {[%clk 0:02:02]} 15. f4 {[%clk 0:02:01]}  O-O-O {[%clk 0:01:55]} 16. fxe5 {[%clk 0:01:28]}  Bxe5 {[%clk 0:01:53]} 17. Ne2 {[%clk 0:01:26]}  Nxe2+ {[%clk 0:01:45]} 18. Bxe2 {[%clk 0:01:27]}  Rxd1+ {[%clk 0:01:43]} 19. Rxd1 {[%clk 0:01:16]}  Bxh2 {[%clk 0:01:42]} 20. Bxa7 {[%clk 0:01:15]}  Be5 {[%clk 0:01:37]} 21. Bd4 {[%clk 0:01:09]}  Bxd4 {[%clk 0:01:32]} 22. Rxd4 {[%clk 0:01:09]}  h5 {[%clk 0:01:31]} 23. Rd1 {[%clk 0:00:50]}  g5 {[%clk 0:01:30]} 24. b3 {[%clk 0:00:41]}  h4 {[%clk 0:01:29]} 25. Rh1 {[%clk 0:00:39]}  Kc7 {[%clk 0:01:29]} 26. Kd2 {[%clk 0:00:39]}  Kd6 {[%clk 0:01:29]} 27. a4 {[%clk 0:00:33]}  c5 {[%clk 0:01:27]} 28. a5 {[%clk 0:00:27]}  Ke5 {[%clk 0:01:25]} 29. Ke3 {[%clk 0:00:26]}  g4 {[%clk 0:01:22]} 30. g3 {[%clk 0:00:19]}  h3 {[%clk 0:01:17]} 31. Bf3 {[%clk 0:00:15]}  gxf3 {[%clk 0:01:15]} 32. Kxf3 {[%clk 0:00:13]}  Rg8 {[%clk 0:01:10]} 33. Kf2 {[%clk 0:00:11]}  Kxe4 {[%clk 0:01:06]} 34. Ra1 {[%clk 0:00:11]}  Kd4 {[%clk 0:01:04]} 35. a6 {[%clk 0:00:10]}  bxa6 {[%clk 0:01:04]} 36. Rxa6 {[%clk 0:00:10]}  Rh8 {[%clk 0:01:03]} 37. Kg1 {[%clk 0:00:08]}  Kc3 {[%clk 0:01:02]} 38. Kh2 {[%clk 0:00:06]}  Kxb3 {[%clk 0:01:01]} 39. Rc6 {[%clk 0:00:04]}  Kxc4 {[%clk 0:01:00]} 40. Rc7 {[%clk 0:00:04]}  Kd5 {[%clk 0:00:59]} 41. g4 {[%clk 0:00:04]}  c4 {[%clk 0:00:59]} 42. g5 {[%clk 0:00:04]}  Rc8 {[%clk 0:00:56]} 43. Ra7 {[%clk 0:00:03]}  c3 {[%clk 0:00:56]} 44. Ra1 {[%clk 0:00:03]}  c2 {[%clk 0:00:55]} 45. Rc1 {[%clk 0:00:03]}  Kd4 {[%clk 0:00:55]} 46. g6 {[%clk 0:00:03]}  fxg6 {[%clk 0:00:55]} 47. Kg3 {[%clk 0:00:03]}  Kc3 {[%clk 0:00:52]} 48. Kh2 {[%clk 0:00:03]}  Kd2 {[%clk 0:00:51]} 49. Rg1 {[%clk 0:00:01]}  c1=Q {[%clk 0:00:45]} 50. Re1 {[%clk 0:00:02]}  Kxe1 {[%clk 0:00:39]} 51. Kg1 {[%clk 0:00:01]}  Qg5+ {[%clk 0:00:34]} 52. Kh2 {[%clk 0:00:02]}  Qg2# {[%clk 0:00:33]} 0-1


[Site "https://www.chess.com"]

[Event "Titled Tuesday Blitz March 22 Early 2022"]
[White "Golsta, Madara"]
[Black "Miszler, Levente"]
[WhiteFideId "11607386"]
[BlackFideId "763276"]
[WhiteElo "1997"]
[BlackElo "1966"]
[Result "0-1"]
[Round "08"]
[TimeControl "180+1"]
[Date "2022.03.22"]
[WhiteClock "0:00:03"]
[BlackClock "0:00:19"]

1. d4 {[%clk 0:02:59]}  d5 {[%clk 0:02:59]} 2. c4 {[%clk 0:02:59]}  c6 {[%clk 0:02:59]} 3. Nf3 {[%clk 0:02:57]}  Nf6 {[%clk 0:02:59]} 4. Nc3 {[%clk 0:02:54]}  e6 {[%clk 0:02:57]} 5. e3 {[%clk 0:02:54]}  Nbd7 {[%clk 0:02:55]} 6. Bd3 {[%clk 0:02:52]}  dxc4 {[%clk 0:02:52]} 7. Bxc4 {[%clk 0:02:53]}  b5 {[%clk 0:02:52]} 8. Bd3 {[%clk 0:02:53]}  Bb7 {[%clk 0:02:52]} 9. Qc2 {[%clk 0:02:44]}  a6 {[%clk 0:02:41]} 10. O-O {[%clk 0:02:41]}  c5 {[%clk 0:02:39]} 11. Be2 {[%clk 0:02:23]}  Rc8 {[%clk 0:02:34]} 12. Qd1 {[%clk 0:01:57]}  Qb6 {[%clk 0:02:26]} 13. Ne5 {[%clk 0:01:47]}  Bd6 {[%clk 0:02:10]} 14. Nxd7 {[%clk 0:01:30]}  Nxd7 {[%clk 0:02:11]} 15. Bf3 {[%clk 0:01:25]}  Bxf3 {[%clk 0:01:58]} 16. Qxf3 {[%clk 0:01:26]}  cxd4 {[%clk 0:01:55]} 17. exd4 {[%clk 0:01:27]}  O-O {[%clk 0:01:33]} 18. Be3 {[%clk 0:01:23]}  Qb8 {[%clk 0:01:27]} 19. h3 {[%clk 0:01:22]}  Nf6 {[%clk 0:01:21]} 20. Ne4 {[%clk 0:01:15]}  Nxe4 {[%clk 0:01:20]} 21. Qxe4 {[%clk 0:01:15]}  Rfd8 {[%clk 0:01:19]} 22. Bg5 {[%clk 0:01:05]}  Rd7 {[%clk 0:01:14]} 23. Rfd1 {[%clk 0:01:01]}  h6 {[%clk 0:01:12]} 24. Be3 {[%clk 0:00:59]}  Rcd8 {[%clk 0:01:11]} 25. Rac1 {[%clk 0:00:57]}  Be7 {[%clk 0:01:08]} 26. Qg4 {[%clk 0:00:53]}  Kf8 {[%clk 0:01:01]} 27. Bf4 {[%clk 0:00:47]}  Bd6 {[%clk 0:00:57]} 28. Be3 {[%clk 0:00:37]}  Qb7 {[%clk 0:00:46]} 29. Qh5 {[%clk 0:00:27]}  Qe4 {[%clk 0:00:33]} 30. Qg4 {[%clk 0:00:11]}  Qxg4 {[%clk 0:00:31]} 31. hxg4 {[%clk 0:00:11]}  Be7 {[%clk 0:00:20]} 32. Kf1 {[%clk 0:00:11]}  Bf6 {[%clk 0:00:20]} 33. Rc6 {[%clk 0:00:08]}  Rd6 {[%clk 0:00:19]} 34. Rxd6 {[%clk 0:00:03]}  Rxd6 {[%clk 0:00:19]} 35. Ke2 {[%clk 0:00:03]}  Ke7 {[%clk 0:00:19]} 0-1


[Site "https://www.chess.com"]

[Event "Titled Tuesday Blitz March 22 Early 2022"]
[White "Golubev, Mikhail"]
[Black "Terry, Renato"]
[WhiteFideId "14100983"]
[BlackFideId "3803457"]
[WhiteElo "2374"]
[BlackElo "2577"]
[Result "0-1"]
[Round "08"]
[TimeControl "180+1"]
[Date "2022.03.22"]
[WhiteClock "0:00:01"]
[BlackClock "0:00:52"]

1. e4 {[%clk 0:02:59]}  e6 {[%clk 0:02:59]} 2. d4 {[%clk 0:02:56]}  d5 {[%clk 0:02:59]} 3. Nc3 {[%clk 0:02:57]}  Nf6 {[%clk 0:02:59]} 4. Bg5 {[%clk 0:02:55]}  Bb4 {[%clk 0:02:59]} 5. e5 {[%clk 0:02:54]}  h6 {[%clk 0:02:57]} 6. Bd2 {[%clk 0:02:53]}  Bxc3 {[%clk 0:02:57]} 7. bxc3 {[%clk 0:02:54]}  Ne4 {[%clk 0:02:57]} 8. Qg4 {[%clk 0:02:54]}  g6 {[%clk 0:02:58]} 9. Bd3 {[%clk 0:02:55]}  Nxd2 {[%clk 0:02:58]} 10. Kxd2 {[%clk 0:02:55]}  c5 {[%clk 0:02:58]} 11. h4 {[%clk 0:02:54]}  Nc6 {[%clk 0:02:57]} 12. Nf3 {[%clk 0:02:47]}  cxd4 {[%clk 0:02:54]} 13. cxd4 {[%clk 0:02:47]}  Qa5+ {[%clk 0:02:54]} 14. c3 {[%clk 0:02:47]}  b6 {[%clk 0:02:53]} 15. a4 {[%clk 0:02:39]}  Ba6 {[%clk 0:02:53]} 16. Bb5 {[%clk 0:02:39]}  Bxb5 {[%clk 0:02:53]} 17. axb5 {[%clk 0:02:38]}  Qxb5 {[%clk 0:02:54]} 18. Rhb1 {[%clk 0:02:21]}  Qc4 {[%clk 0:02:54]} 19. Rxb6 {[%clk 0:02:20]}  Rc8 {[%clk 0:02:54]} 20. Rbb1 {[%clk 0:01:51]}  Na5 {[%clk 0:02:22]} 21. Ra3 {[%clk 0:01:31]}  Qc7 {[%clk 0:02:04]} 22. Ke1 {[%clk 0:01:15]}  O-O {[%clk 0:01:59]} 23. h5 {[%clk 0:01:11]}  g5 {[%clk 0:01:58]} 24. Kf1 {[%clk 0:00:53]}  Rb8 {[%clk 0:01:36]} 25. Rxb8 {[%clk 0:00:43]}  Rxb8 {[%clk 0:01:36]} 26. Kg1 {[%clk 0:00:37]}  Nc4 {[%clk 0:01:34]} 27. Ra1 {[%clk 0:00:27]}  a5 {[%clk 0:01:28]} 28. Rd1 {[%clk 0:00:19]}  Kh7 {[%clk 0:01:18]} 29. Nxg5+ {[%clk 0:00:12]}  hxg5 {[%clk 0:01:18]} 30. Qxg5 {[%clk 0:00:13]}  Rg8 {[%clk 0:01:18]} 31. Qf4 {[%clk 0:00:13]}  f5 {[%clk 0:01:14]} 32. Rd3 {[%clk 0:00:10]}  Qf7 {[%clk 0:01:07]} 33. Rh3 {[%clk 0:00:05]}  Rg4 {[%clk 0:01:07]} 34. Qc1 {[%clk 0:00:04]}  Qg7 {[%clk 0:01:04]} 35. g3 {[%clk 0:00:03]}  a4 {[%clk 0:01:05]} 36. Qb1 {[%clk 0:00:03]}  a3 {[%clk 0:01:04]} 37. Qb8 {[%clk 0:00:01]}  Nd2 {[%clk 0:00:52]} 0-1


[Site "https://www.chess.com"]

[Event "Titled Tuesday Blitz March 22 Early 2022"]
[White "Grieve, Harry"]
[Black "Prohorov, Olexandr"]
[WhiteFideId "426520"]
[BlackFideId "14105578"]
[WhiteElo "2294"]
[BlackElo "1993"]
[Result "1-0"]
[Round "08"]
[TimeControl "180+1"]
[Date "2022.03.22"]
[WhiteClock "0:00:43"]
[BlackClock "0:01:51"]

1. e4 {[%clk 0:02:57]}  c5 {[%clk 0:02:59]} 2. Nc3 {[%clk 0:02:57]}  a6 {[%clk 0:02:55]} 3. g3 {[%clk 0:02:56]}  b5 {[%clk 0:02:55]} 4. Bg2 {[%clk 0:02:57]}  Bb7 {[%clk 0:02:55]} 5. Nge2 {[%clk 0:02:58]}  e6 {[%clk 0:02:56]} 6. d4 {[%clk 0:02:58]}  cxd4 {[%clk 0:02:55]} 7. Nxd4 {[%clk 0:02:59]}  Nf6 {[%clk 0:02:54]} 8. O-O {[%clk 0:02:59]}  Be7 {[%clk 0:02:49]} 9. e5 {[%clk 0:02:41]}  Nd5 {[%clk 0:02:19]} 10. Nxd5 {[%clk 0:02:41]}  exd5 {[%clk 0:02:17]} 11. Qg4 {[%clk 0:02:17]}  g6 {[%clk 0:02:13]} 12. Bh6 {[%clk 0:01:37]}  Qc7 {[%clk 0:02:04]} 13. Bg7 {[%clk 0:01:26]}  Rg8 {[%clk 0:02:02]} 14. Bf6 {[%clk 0:01:26]}  Nc6 {[%clk 0:01:59]} 15. Bxd5 {[%clk 0:01:08]}  O-O-O {[%clk 0:01:51]} 16. Bxc6 {[%clk 0:00:43]} 1-0


[Site "https://www.chess.com"]

[Event "Titled Tuesday Blitz March 22 Early 2022"]
[White "Grischuk, Alexander"]
[Black "Donchenko, Alexander"]
[WhiteFideId "4126025"]
[BlackFideId "24603295"]
[WhiteElo "2762"]
[BlackElo "2539"]
[Result "1/2-1/2"]
[Round "08"]
[TimeControl "180+1"]
[Date "2022.03.22"]
[WhiteClock "0:00:03"]
[BlackClock "0:00:11"]

1. e4 {[%clk 0:03:00]}  c5 {[%clk 0:03:00]} 2. Nc3 {[%clk 0:03:01]}  d6 {[%clk 0:02:59]} 3. Bb5+ {[%clk 0:03:01]}  Bd7 {[%clk 0:02:59]} 4. Bxd7+ {[%clk 0:03:01]}  Qxd7 {[%clk 0:02:59]} 5. d4 {[%clk 0:03:01]}  cxd4 {[%clk 0:02:59]} 6. Qxd4 {[%clk 0:03:02]}  Nc6 {[%clk 0:02:59]} 7. Qd3 {[%clk 0:03:02]}  g6 {[%clk 0:02:59]} 8. Nf3 {[%clk 0:03:02]}  Bg7 {[%clk 0:03:00]} 9. O-O {[%clk 0:03:02]}  Nf6 {[%clk 0:03:00]} 10. Nd5 {[%clk 0:02:55]}  O-O {[%clk 0:02:55]} 11. Bg5 {[%clk 0:02:55]}  Ne8 {[%clk 0:02:46]} 12. Rad1 {[%clk 0:02:54]}  Nc7 {[%clk 0:02:42]} 13. c3 {[%clk 0:02:50]}  Ne6 {[%clk 0:02:40]} 14. Be3 {[%clk 0:02:49]}  Rfd8 {[%clk 0:02:34]} 15. Rfe1 {[%clk 0:02:45]}  Rac8 {[%clk 0:02:27]} 16. h4 {[%clk 0:02:40]}  h5 {[%clk 0:02:23]} 17. Qe2 {[%clk 0:02:40]}  Nc7 {[%clk 0:02:14]} 18. Bg5 {[%clk 0:02:18]}  Re8 {[%clk 0:02:12]} 19. Qe3 {[%clk 0:02:07]}  b6 {[%clk 0:02:05]} 20. Bh6 {[%clk 0:02:06]}  Nxd5 {[%clk 0:02:04]} 21. exd5 {[%clk 0:02:04]}  Ne5 {[%clk 0:02:04]} 22. Bxg7 {[%clk 0:02:03]}  Nxf3+ {[%clk 0:02:05]} 23. Qxf3 {[%clk 0:02:04]}  Kxg7 {[%clk 0:02:05]} 24. Rd4 {[%clk 0:01:59]}  e5 {[%clk 0:02:01]} 25. dxe6 {[%clk 0:01:58]}  Rxe6 {[%clk 0:02:02]} 26. Red1 {[%clk 0:01:51]}  Rce8 {[%clk 0:01:58]} 27. g3 {[%clk 0:01:51]}  Re1+ {[%clk 0:01:52]} 28. Kg2 {[%clk 0:01:51]}  Qb5 {[%clk 0:01:51]} 29. R1d3 {[%clk 0:00:38]}  Qxb2 {[%clk 0:01:26]} 30. Rxd6 {[%clk 0:00:37]}  Qe2 {[%clk 0:01:19]} 31. Qxe2 {[%clk 0:00:25]}  R1xe2 {[%clk 0:01:19]} 32. a4 {[%clk 0:00:20]}  R2e5 {[%clk 0:01:13]} 33. Rd7 {[%clk 0:00:08]}  R8e7 {[%clk 0:01:12]} 34. Rxe7 {[%clk 0:00:07]}  Rxe7 {[%clk 0:01:13]} 35. a5 {[%clk 0:00:06]}  bxa5 {[%clk 0:00:59]} 36. Rd5 {[%clk 0:00:06]}  Kf6 {[%clk 0:00:59]} 37. Rxa5 {[%clk 0:00:06]}  Ke6 {[%clk 0:00:59]} 38. f3 {[%clk 0:00:06]}  Rc7 {[%clk 0:00:42]} 39. g4 {[%clk 0:00:02]}  hxg4 {[%clk 0:00:43]} 40. fxg4 {[%clk 0:00:03]}  Rc4 {[%clk 0:00:43]} 41. Kf3 {[%clk 0:00:02]}  Rxc3+ {[%clk 0:00:43]} 42. Kf4 {[%clk 0:00:02]}  Rc4+ {[%clk 0:00:26]} 43. Kf3 {[%clk 0:00:03]}  Rc7 {[%clk 0:00:25]} 44. Kf4 {[%clk 0:00:03]}  Kf6 {[%clk 0:00:25]} 45. Ra6+ {[%clk 0:00:02]}  Kg7 {[%clk 0:00:25]} 46. h5 {[%clk 0:00:02]}  Rb7 {[%clk 0:00:14]} 47. hxg6 {[%clk 0:00:02]}  fxg6 {[%clk 0:00:14]} 48. Kg5 {[%clk 0:00:02]}  Rb5+ {[%clk 0:00:15]} 49. Kf4 {[%clk 0:00:02]}  Rb7 {[%clk 0:00:12]} 50. Kg5 {[%clk 0:00:03]}  Rb5+ {[%clk 0:00:11]} 51. Kf4 {[%clk 0:00:03]}  Rb7 {[%clk 0:00:11]} 1/2-1/2


[Site "https://www.chess.com"]

[Event "Titled Tuesday Blitz March 22 Early 2022"]
[White "Hakobyan, Aram"]
[Black "Petrosyan, Manuel"]
[WhiteFideId "13306677"]
[BlackFideId "13300857"]
[WhiteElo "2557"]
[BlackElo "2592"]
[Result "1/2-1/2"]
[Round "08"]
[TimeControl "180+1"]
[Date "2022.03.22"]
[WhiteClock "0:00:16"]
[BlackClock "0:00:11"]

1. d4 {[%clk 0:03:00]}  Nf6 {[%clk 0:02:59]} 2. Nf3 {[%clk 0:03:01]}  d5 {[%clk 0:02:58]} 3. c3 {[%clk 0:03:02]}  Bf5 {[%clk 0:02:56]} 4. Qb3 {[%clk 0:03:02]}  Qc8 {[%clk 0:02:57]} 5. c4 {[%clk 0:03:02]}  e6 {[%clk 0:02:55]} 6. cxd5 {[%clk 0:03:03]}  exd5 {[%clk 0:02:55]} 7. Nc3 {[%clk 0:03:04]}  c6 {[%clk 0:02:54]} 8. Bf4 {[%clk 0:03:05]}  Be7 {[%clk 0:02:40]} 9. Rc1 {[%clk 0:03:05]}  O-O {[%clk 0:02:40]} 10. h3 {[%clk 0:03:02]}  Nbd7 {[%clk 0:02:20]} 11. e3 {[%clk 0:03:02]}  h6 {[%clk 0:02:11]} 12. Be2 {[%clk 0:02:59]}  Nb6 {[%clk 0:02:11]} 13. O-O {[%clk 0:02:57]}  Ne4 {[%clk 0:01:56]} 14. a4 {[%clk 0:02:56]}  Be6 {[%clk 0:01:38]} 15. a5 {[%clk 0:02:53]}  Nxc3 {[%clk 0:01:37]} 16. bxc3 {[%clk 0:02:50]}  Nc4 {[%clk 0:01:38]} 17. Bxc4 {[%clk 0:02:34]}  dxc4 {[%clk 0:01:38]} 18. Qa2 {[%clk 0:02:34]}  b5 {[%clk 0:01:32]} 19. e4 {[%clk 0:02:35]}  b4 {[%clk 0:01:21]} 20. cxb4 {[%clk 0:02:17]}  Bxb4 {[%clk 0:01:22]} 21. Rfd1 {[%clk 0:02:09]}  Rd8 {[%clk 0:01:13]} 22. Qa4 {[%clk 0:02:08]}  Qb7 {[%clk 0:01:05]} 23. Rb1 {[%clk 0:02:03]}  c5 {[%clk 0:01:06]} 24. d5 {[%clk 0:01:54]}  Bd7 {[%clk 0:01:06]} 25. Qc2 {[%clk 0:01:55]}  Qa6 {[%clk 0:01:02]} 26. Be5 {[%clk 0:01:42]}  Qxa5 {[%clk 0:00:49]} 27. Ra1 {[%clk 0:01:42]}  Qb5 {[%clk 0:00:46]} 28. Bc3 {[%clk 0:01:36]}  a5 {[%clk 0:00:46]} 29. Ne5 {[%clk 0:01:32]}  Be8 {[%clk 0:00:46]} 30. Ng4 {[%clk 0:01:29]}  a4 {[%clk 0:00:38]} 31. Be5 {[%clk 0:01:14]}  Ra6 {[%clk 0:00:29]} 32. Qc1 {[%clk 0:01:10]}  a3 {[%clk 0:00:26]} 33. d6 {[%clk 0:01:08]}  f6 {[%clk 0:00:18]} 34. Nxf6+ {[%clk 0:00:35]}  gxf6 {[%clk 0:00:18]} 35. Qxh6 {[%clk 0:00:35]}  fxe5 {[%clk 0:00:11]} 36. Qg5+ {[%clk 0:00:32]}  Kf7 {[%clk 0:00:11]} 37. Qxd8 {[%clk 0:00:23]}  Qd7 {[%clk 0:00:10]} 38. Qh4 {[%clk 0:00:24]}  Rxd6 {[%clk 0:00:09]} 39. Qh7+ {[%clk 0:00:17]}  Kf8 {[%clk 0:00:10]} 40. Qh8+ {[%clk 0:00:14]}  Kf7 {[%clk 0:00:10]} 41. Qh7+ {[%clk 0:00:15]}  Kf8 {[%clk 0:00:11]} 42. Qh8+ {[%clk 0:00:15]}  Kf7 {[%clk 0:00:11]} 43. Qh7+ {[%clk 0:00:16]} 1/2-1/2


[Site "https://www.chess.com"]

[Event "Titled Tuesday Blitz March 22 Early 2022"]
[White "Hamitevici, Vladimir"]
[Black "Aaditya Dhingra"]
[WhiteFideId "13902393"]
[BlackFideId "25678191"]
[WhiteElo "2359"]
[BlackElo "1849"]
[Result "1-0"]
[Round "08"]
[TimeControl "180+1"]
[Date "2022.03.22"]
[WhiteClock "0:02:02"]
[BlackClock "0:01:58"]

1. d4 {[%clk 0:02:59]}  Nf6 {[%clk 0:02:59]} 2. c4 {[%clk 0:02:58]}  e6 {[%clk 0:02:59]} 3. g3 {[%clk 0:02:59]}  c5 {[%clk 0:02:58]} 4. Nf3 {[%clk 0:02:58]}  cxd4 {[%clk 0:02:57]} 5. Nxd4 {[%clk 0:02:59]}  a6 {[%clk 0:02:57]} 6. Bg2 {[%clk 0:02:59]}  Nc6 {[%clk 0:02:52]} 7. O-O {[%clk 0:02:57]}  Bc5 {[%clk 0:02:52]} 8. Nc2 {[%clk 0:02:52]}  O-O {[%clk 0:02:50]} 9. Nc3 {[%clk 0:02:51]}  d6 {[%clk 0:02:46]} 10. Bf4 {[%clk 0:02:29]}  e5 {[%clk 0:02:45]} 11. Bg5 {[%clk 0:02:30]}  Be6 {[%clk 0:02:44]} 12. Ne4 {[%clk 0:02:16]}  Bxc4 {[%clk 0:02:19]} 13. Nxf6+ {[%clk 0:02:16]}  gxf6 {[%clk 0:02:19]} 14. Bh6 {[%clk 0:02:14]}  Re8 {[%clk 0:02:17]} 15. Ne3 {[%clk 0:02:12]}  Bxe3 {[%clk 0:02:15]} 16. fxe3 {[%clk 0:02:09]}  d5 {[%clk 0:02:06]} 17. b3 {[%clk 0:02:09]}  Bb5 {[%clk 0:02:04]} 18. Bxd5 {[%clk 0:02:09]}  Bxe2 {[%clk 0:01:58]} 19. Qxe2 {[%clk 0:02:02]} 1-0


[Site "https://www.chess.com"]

[Event "Titled Tuesday Blitz March 22 Early 2022"]
[White "Harish, Neeraj"]
[Black "Dahlgren, James Allen"]
[WhiteFideId "30958130"]
[BlackFideId "22256873"]
[WhiteElo "1574"]
[BlackElo "2112"]
[Result "0-1"]
[Round "08"]
[TimeControl "180+1"]
[Date "2022.03.22"]
[WhiteClock "0:00:27"]
[BlackClock "0:00:35"]

1. e4 {[%clk 0:03:00]}  e6 {[%clk 0:02:59]} 2. d4 {[%clk 0:03:00]}  c5 {[%clk 0:03:00]} 3. Nf3 {[%clk 0:02:57]}  d5 {[%clk 0:02:58]} 4. exd5 {[%clk 0:02:20]}  exd5 {[%clk 0:02:59]} 5. Bb5+ {[%clk 0:02:19]}  Bd7 {[%clk 0:02:57]} 6. Bxd7+ {[%clk 0:02:12]}  Nxd7 {[%clk 0:02:53]} 7. O-O {[%clk 0:02:11]}  Ngf6 {[%clk 0:02:52]} 8. Bg5 {[%clk 0:02:11]}  Be7 {[%clk 0:02:52]} 9. c3 {[%clk 0:02:06]}  O-O {[%clk 0:02:51]} 10. Nbd2 {[%clk 0:02:05]}  h6 {[%clk 0:02:41]} 11. Bf4 {[%clk 0:02:01]}  Ne4 {[%clk 0:02:29]} 12. Nxe4 {[%clk 0:01:54]}  dxe4 {[%clk 0:02:30]} 13. Ne5 {[%clk 0:01:54]}  Nf6 {[%clk 0:02:09]} 14. Qb3 {[%clk 0:01:38]}  cxd4 {[%clk 0:02:01]} 15. cxd4 {[%clk 0:01:38]}  Qxd4 {[%clk 0:01:51]} 16. Rfd1 {[%clk 0:01:37]}  Qb6 {[%clk 0:01:43]} 17. Ng6 {[%clk 0:01:03]}  Rfe8 {[%clk 0:01:21]} 18. Nxe7+ {[%clk 0:01:01]}  Rxe7 {[%clk 0:01:18]} 19. Qxb6 {[%clk 0:01:02]}  axb6 {[%clk 0:01:17]} 20. Rd6 {[%clk 0:01:00]}  Rd7 {[%clk 0:00:54]} 21. Rxb6 {[%clk 0:00:56]}  Rxa2 {[%clk 0:00:52]} 22. Rc1 {[%clk 0:00:50]}  Nd5 {[%clk 0:00:43]} 23. Rd6 {[%clk 0:00:45]}  Nxf4 {[%clk 0:00:38]} 24. Rxd7 {[%clk 0:00:43]}  Ne2+ {[%clk 0:00:37]} 25. Kf1 {[%clk 0:00:44]}  Nxc1 {[%clk 0:00:37]} 26. Rxb7 {[%clk 0:00:43]}  Nd3 {[%clk 0:00:36]} 27. Ke2 {[%clk 0:00:37]}  Rxb2+ {[%clk 0:00:36]} 28. Rxb2 {[%clk 0:00:35]}  Nxb2 {[%clk 0:00:37]} 29. Ke3 {[%clk 0:00:36]}  f5 {[%clk 0:00:36]} 30. Kf4 {[%clk 0:00:36]}  g6 {[%clk 0:00:37]} 31. g4 {[%clk 0:00:36]}  fxg4 {[%clk 0:00:36]} 32. Kxe4 {[%clk 0:00:35]}  Kf7 {[%clk 0:00:35]} 33. Kf4 {[%clk 0:00:36]}  h5 {[%clk 0:00:35]} 34. Kg5 {[%clk 0:00:27]}  Nd3 {[%clk 0:00:35]} 0-1


[Site "https://www.chess.com"]

[Event "Titled Tuesday Blitz March 22 Early 2022"]
[White "Heinemann, Josefine"]
[Black "Vovk, Orest"]
[WhiteFideId "12900460"]
[BlackFideId "14113490"]
[WhiteElo "2300"]
[BlackElo "2203"]
[Result "1-0"]
[Round "08"]
[TimeControl "180+1"]
[Date "2022.03.22"]
[WhiteClock "0:00:54"]
[BlackClock "0:00:23"]

1. Nf3 {[%clk 0:03:00]}  h6 {[%clk 0:02:59]} 2. e4 {[%clk 0:02:52]}  Nf6 {[%clk 0:02:56]} 3. Nc3 {[%clk 0:02:51]}  Nh7 {[%clk 0:02:56]} 4. d4 {[%clk 0:02:51]}  d6 {[%clk 0:02:51]} 5. Be2 {[%clk 0:02:47]}  Bg4 {[%clk 0:02:50]} 6. O-O {[%clk 0:02:46]}  Ng5 {[%clk 0:02:48]} 7. Nxg5 {[%clk 0:02:41]}  Bxe2 {[%clk 0:02:47]} 8. Qxe2 {[%clk 0:02:41]}  hxg5 {[%clk 0:02:46]} 9. Bxg5 {[%clk 0:02:42]}  Nc6 {[%clk 0:02:45]} 10. Rad1 {[%clk 0:02:40]}  Qd7 {[%clk 0:02:44]} 11. d5 {[%clk 0:02:35]}  Ne5 {[%clk 0:02:43]} 12. f4 {[%clk 0:02:29]}  Ng4 {[%clk 0:02:36]} 13. h3 {[%clk 0:02:24]}  Nf6 {[%clk 0:02:26]} 14. e5 {[%clk 0:02:16]}  Nh5 {[%clk 0:02:24]} 15. e6 {[%clk 0:02:14]}  fxe6 {[%clk 0:02:21]} 16. dxe6 {[%clk 0:02:14]}  Qc6 {[%clk 0:02:21]} 17. Nd5 {[%clk 0:02:10]}  Ng3 {[%clk 0:02:14]} 18. Qb5 {[%clk 0:01:55]}  Qxb5 {[%clk 0:02:13]} 19. Nxc7+ {[%clk 0:01:54]}  Kd8 {[%clk 0:02:13]} 20. Nxb5 {[%clk 0:01:55]}  Nxf1 {[%clk 0:02:11]} 21. Kxf1 {[%clk 0:01:52]}  Kc8 {[%clk 0:02:06]} 22. Rd3 {[%clk 0:01:48]}  a6 {[%clk 0:02:03]} 23. Rc3+ {[%clk 0:01:48]}  Kb8 {[%clk 0:02:02]} 24. Nc7 {[%clk 0:01:47]}  Ra7 {[%clk 0:02:02]} 25. Nd5 {[%clk 0:01:38]}  b5 {[%clk 0:02:01]} 26. Rc6 {[%clk 0:01:37]}  g6 {[%clk 0:01:55]} 27. Ke2 {[%clk 0:01:26]}  Kb7 {[%clk 0:01:22]} 28. Rc7+ {[%clk 0:01:23]}  Kb8 {[%clk 0:01:22]} 29. Rd7 {[%clk 0:01:17]}  Rb7 {[%clk 0:01:08]} 30. Nxe7 {[%clk 0:01:12]}  Bxe7 {[%clk 0:00:56]} 31. Bxe7 {[%clk 0:01:11]}  Re8 {[%clk 0:00:55]} 32. Bxd6+ {[%clk 0:01:11]}  Kc8 {[%clk 0:00:55]} 33. Rxb7 {[%clk 0:01:10]}  Rxe6+ {[%clk 0:00:55]} 34. Be5 {[%clk 0:01:08]}  Kxb7 {[%clk 0:00:55]} 35. Kf3 {[%clk 0:01:07]}  Rc6 {[%clk 0:00:54]} 36. c3 {[%clk 0:01:07]}  Kc8 {[%clk 0:00:53]} 37. g4 {[%clk 0:01:07]}  Kd7 {[%clk 0:00:54]} 38. h4 {[%clk 0:01:08]}  Ke6 {[%clk 0:00:54]} 39. Ke4 {[%clk 0:01:08]}  Rc4+ {[%clk 0:00:54]} 40. Ke3 {[%clk 0:01:04]}  Kd5 {[%clk 0:00:51]} 41. h5 {[%clk 0:00:58]}  gxh5 {[%clk 0:00:47]} 42. gxh5 {[%clk 0:00:59]}  Re4+ {[%clk 0:00:46]} 43. Kf2 {[%clk 0:00:56]}  Rxe5 {[%clk 0:00:22]} 44. fxe5 {[%clk 0:00:54]}  Kxe5 {[%clk 0:00:23]} 45. Ke3 {[%clk 0:00:54]} 1-0


[Site "https://www.chess.com"]